Cogmind - Beta 16.1 @@@ ROGUE MODE // 2026.03.29 @ 02:04:43 Player: Sen Result: Destroyed by BO-IBO(R) with Subdweller Laser Performance ------------- Evolutions (0) 0 Regions Visited (2) 400 Robots Destroyed (12) 60 Value Destroyed (208) 208 Prototype IDs (2) 40 Alien Tech Used (0) 0 Bonus (-12) -12 TOTAL SCORE: 696 Bonus ------- Friendly Fire -12 Cogmind --------- Core Integrity 0/250 Matter 290/300 Energy 125/125 System Corruption 0% Temperature Cool (6) Movement Walking (260) Ox2 Location -10/Subcaves Parts ------- > --- POWER (1) -------- Light Ion Engine > --- PROPULSION (2) --- Aluminum Leg > --- UTILITY (2) ------ Large Storage Unit Improved Terrain Scanner > --- WEAPON (2) ------- (None) > --- INVENTORY (15) --- Ion Engine Light Ion Engine Light Treads Aluminum Leg Heat Sink High-capacity Battery (250) Seismic Detector Scrap Shield Assault Rifle Light Assault Rifle Light Assault Rifle Grenade Launcher Mining Laser Peak State ------------ > --- POWER ------------ Light Ion Engine > --- PROPULSION ------- Aluminum Leg Aluminum Leg > --- UTILITY ---------- Large Storage Unit Improved Terrain Scanner > --- WEAPON ----------- Medium Laser Grenade Launcher > --- INVENTORY -------- Ion Engine Light Ion Engine Light Treads Aluminum Leg Wheel Heat Sink High-capacity Battery Seismic Detector Assault Rifle Light Assault Rifle Light Assault Rifle Grenade Launcher Mining Laser [Rating: 10] Favorites ----------- Power Light Ion Engine Engine Light Ion Engine Propulsion Aluminum Leg Leg Aluminum Leg Wheel Wheel Utility Large Storage Unit Device Improved Terrain Scanner Storage Large Storage Unit Weapon Medium Laser Energy Gun Medium Laser Ballistic Gun Assault Rifle Launcher Grenade Launcher Build | -11 -10 -10 ------- Run | Yrd Mat Sub Slots Evolved . | . . . Power . | . . . Propulsion . | . . . Utility . | . . . Weapon . | . . . Parts Attached 14 | 6 5 3 Power 2 | 1 1 . Engine 2 | 1 1 . Core . | . . . Reactor . | . . . Propulsion 4 | 2 . 2 Treads . | . . . Leg 3 | 2 . 1 Wheel 1 | . . 1 Hover . | . . . Flight . | . . . Utility 4 | 1 2 1 Device 2 | . 1 1 Storage 2 | 1 1 . Processor . | . . . Hackware . | . . . Protection . | . . . Artifact . | . . . Weapon 4 | 2 2 . Energy Gun 1 | . 1 . Energy Cannon . | . . . Ballistic Gun 2 | 2 . . Ballistic Cannon . | . . . Launcher 1 | . 1 . Special Weapon . | . . . Impact Weapon . | . . . Slashing Weapon . | . . . Piercing Weapon . | . . . Special Melee Weapon . | . . . Unidentified Prototypes . | . . . Parts Lost 5 | . 1 4 Power 1 | . 1 . Propulsion 2 | . . 2 Utility . | . . . Weapon 2 | . . 2 Highest Loss Streak 2 | . 1 2 To Critical Strikes . | . . . Average Backups 9 | 2 9 13 Power 1 | . 1 2 Propulsion 2 | 1 2 2 Utility 1 | . 1 3 Weapon 3 | . 3 5 Tool/Special . | . . . Unused Backups 9 | . . 9 Power 2 | . . 2 Propulsion 1 | . . 1 Utility 3 | . . 3 Weapon 3 | . . 3 Tool/Special . | . . . Average Slot Usage (%) 89 | . 88 91 Engine 13 | . 13 14 Leg 27 | . 28 25 Device 6 | . 4 14 Storage 14 | . 14 14 Energy Gun 12 | . 12 10 Ballistic Gun 10 | . 13 . Launcher 3 | . 1 10 Peak Build Rating 10 | 6 8 10 Average Rating 7 | 5 7 9 On Entrance 4 | . 6 8 Avg Prop Armor Cover (%) 14 | . . 14 Naked Turns . | . . . Heaviest Build 32 | 11 32 29 Greatest Support 20 | 20 20 20 Greatest Overweight (x) 2 | . 1 2 Average Overweight (x) . | . . 1 Largest Inventory Capacity 15 | 8 15 15 Average Capacity 12 | 7 13 15 Most Carried 15 | 6 13 15 Average Carried 9 | 2 9 14 Final Capacity 15 | 8 15 15 Final Carried 14 | 6 13 14 Class Distribution -------------------- 100% | Mutant Dominant Class ---------------- Mutant | -10/Materials Mutant | -10/Subcaves Resources | -11 -10 -10 ----------- Run | Yrd Mat Sub Matter Collected 416 | 270 126 20 Remotely . | . . . Salvage Created 301 | 30 201 70 Parts 22 | 4 13 5 Haulers Intercepted 1 | . 1 . Recyclers Shooed . | . . . Parts Field Recycled . | . . . Retrieved Matter . | . . . Parts Self-Destructed 9 | . . 9 Prevented . | . . . Parts Restored . | . . . Kills | -11 -10 -10 ------- Run | Yrd Mat Sub Combat Hostiles Destroyed 7 | . 5 2 Guns 3 | . 3 . AOE 4 | . 2 2 Classes Destroyed 7 | 1 5 1 Worker 1 | . 1 . Tunneler 2 | 2 . . Hauler 1 | . 1 . Recycler 1 | . 1 . Swarmer 3 | . 3 . Grunt 3 | . 2 1 Subdweller 1 | . . 1 Best Kill Streak 6 | 1 6 1 Combat Bots Only 3 | . 3 1 Max Kills in Single Turn 3 | 1 3 1 Gunslinging . | . . . Exploded 2 | . 2 1 Melee . | . . . Uniques/NPCs Destroyed . | . . . Combat | -11 -10 -10 -------- Run | Yrd Mat Sub Hostile Shots Fired 71 | . 24 47 Missed 23 | . 4 19 Hits 48 | . 20 28 Projectile 48 | . 20 28 Critical Strikes 2 | . 2 . Damage Taken 841 | . 237 604 Core 271 | . 42 229 Absorbed by Shields . | . . . Core Remaining (%) 100 | 100 . . Volleys Fired 28 | 8 15 5 Largest 2 | 2 2 2 Hottest 80 | 40 80 80 Shots Fired 53 | 16 30 7 Gun 49 | 16 28 5 Cannon . | . . . Launcher 4 | . 2 2 Special . | . . . Kinetic 29 | 16 13 . Thermal 20 | . 15 5 Explosive 4 | . 2 2 Electromagnetic . | . . . Robot Hit Streak 6 | 4 6 5 Robot Miss Streak 3 | 3 2 1 Penetration Max . | . . . Secondary Targets . | . . . Shots Hit Robots 32 | 8 20 4 Core Hits 19 | 4 12 3 Critical Kills . | . . . Critical Parts Destroyed . | . . . Critical Strikes 1 | . 1 . Burn 1 | . 1 . Melee Attacks . | . . . Impact . | . . . Slashing . | . . . Piercing . | . . . Sneak Attacks . | . . . Combat Hostiles . | . . . Follow-up Attacks . | . . . Damage Inflicted 788 | 101 474 213 Guns 353 | 101 226 26 Cannons . | . . . Explosions 435 | . 248 187 Melee . | . . . Ramming . | . . . Kinetic 216 | 101 115 . Thermal 137 | . 111 26 Explosive 435 | . 248 187 Electromagnetic . | . . . Impact . | . . . Slashing . | . . . Piercing . | . . . Highest Corruption . | . . . Average Corruption . | . . . Corruption Purged . | . . . Corruption Blocked . | . . . Overload Shots . | . . . Overflow Damage 2 | . 2 . Projectiles . | . . . Explosions 2 | . 2 . Melee . | . . . Knockbacks . | . . . Impact . | . . . Kinetic . | . . . Secondary . | . . . Self-Inflicted Damage . | . . . Shots . | . . . Rammed . | . . . Targets Rammed . | . . . Kicked . | . . . Crushed . | . . . Highest Temperature 190 | . 190 . Average Temperature 133 | . 133 . Received Heat Transfer 261 | . 150 111 Siege Activations . | . . . Martial Activations . | . . . Shielding Activations . | . . . Robots Disrupted . | . . . Combat Hostiles . | . . . Robots Corrupted . | . . . Combat Hostiles . | . . . Parts Fried . | . . . Impact Corruptions . | . . . Robots Melted . | . . . Combat Hostiles . | . . . Parts Melted 1 | . 1 . Heat Transferred 481 | . 407 74 Parts Sabotaged . | . . . Parts Stolen . | . . . Parts Stripped . | . . . Power Chain Reactions . | . . . Alert | -11 -10 -10 ------- Run | Yrd Mat Sub Maximum Alert Level . | . . . Low Security (%) 100 | 100 100 . Level 1 . | . . . Level 2 . | . . . Level 3 . | . . . Level 4 . | . . . Level 5 . | . . . High Security . | . . . Max Security . | . . . Peak Influence 103 | 5 103 . Initial . | . . . Average 12 | . 14 . Influence Increases 198 | 10 168 20 Destroy 0b10 Robot/C 120 | . 100 20 Destroy 0b10 Robot/NC 25 | 10 15 . Destroy Leader 22 | . 22 . Successful Hack 15 | . 15 . Destroy Structure 16 | . 16 . Influence Decreases 198 | 10 89 99 Entered New Map 39 | . . 39 Time Decay 149 | 10 79 60 Lost Part 10 | . 10 . Squads Dispatched . | . . . Investigation . | . . . Extermination . | . . . Reinforcement . | . . . Assault . | . . . Garrison . | . . . Intercept . | . . . Searches Triggered . | . . . Construction Impeded . | . . . Haulers Reinforced . | . . . Active Scanning Responses . | . . . Cargo Convoy Interrupts . | . . . Stealth | -11 -10 -10 --------- Run | Yrd Mat Sub Distress Signals . | . . . Communications Jammed . | . . . Distress Signals . | . . . Times Spotted 21 | . 5 16 Peak Tracking Total 10 | . 3 10 Tactical Retreats . | . . . Traps | -11 -10 -10 ------- Run | Yrd Mat Sub Traps Triggered . | . . . Indirectly . | . . . Trap Hack Attempts . | . . . Triggered . | . . . Disarmed . | . . . Reprogrammed . | . . . Reused . | . . . Traps Extracted . | . . . Installed . | . . . Triggered . | . . . Machines | -11 -10 -10 ---------- Run | Yrd Mat Sub Machines Disabled . | . . . Max in Single Turn . | . . . Machines Repaired . | . . . Machines Dismantled . | . . . Machines Sabotaged . | . . . Overloaded Fab Kills . | . . . Hacking | -11 -10 -10 --------- Run | Yrd Mat Sub Machines Accessed 3 | . 3 . Terminals 3 | . 3 . Fabricators . | . . . Repair Stations . | . . . Recycling Units . | . . . Scanalyzers . | . . . Garrison Access . | . . . Total Hacks 8 | . 8 . Successful 4 | . 4 . Failed 4 | . 4 . Catastrophic . | . . . Database Lockouts . | . . . Manual 4 | . 4 . Terminals 8 | . 8 . Fabricators . | . . . Repair Stations . | . . . Recycling Units . | . . . Scanalyzers . | . . . Garrison Access . | . . . Terminal Hacks 2 | . 2 . Prototype ID Bank 1 | . 1 . Locate Traps 1 | . 1 . Fabricator Hacks . | . . . Repair Station Hacks . | . . . Recycling Unit Hacks . | . . . Scanalyzer . | . . . Garrison Access Hacks . | . . . Unauthorized Hacks 2 | . 2 . Terminals 2 | . 2 . Botnet 1 | . 1 . Operators 1 | . 1 . Fabricators . | . . . Repair Stations . | . . . Recycling Units . | . . . Scanalyzers . | . . . Garrison Access . | . . . Data Cores Recovered . | . . . Used . | . . . Hacking Detections 2 | . 2 . Full Trace Events 1 | . 1 . Feedback Events . | . . . Feedback Blocked . | . . . Robot Schematics Acquired . | . . . Robots Built . | . . . Authchips . | . . . Time . | . . . Total Robot Build Rating . | . . . Part Schematics Acquired . | . . . Parts Built . | . . . Authchips . | . . . Time . | . . . Total Part Build Rating . | . . . Part Studies Acquired . | . . . Parts Repaired . | . . . Time . | . . . Parts Recycled . | . . . Recycled Matter . | . . . Retrieved Matter . | . . . Retrieved Components . | . . . Parts Scanalyzed . | . . . Part Schematics Acquired . | . . . Parts Damaged . | . . . Bothacking | -11 -10 -10 ------------ Run | Yrd Mat Sub Used RIF Installer . | . . . Robots Hacked . | . . . Non-combat . | . . . Combat . | . . . Robot Hacks Applied . | . . . Relay Couplers Released . | . . . Fabnet Peak Effective % . | . . . Robots Rewired . | . . . Allies Hacked . | . . . Hacks Repelled . | . . . Allies | -11 -10 -10 -------- Run | Yrd Mat Sub Total Allies . | . . . Largest Group . | . . . Highest-Rated Group . | . . . Highest-Rated Ally . | . . . Total Orders . | . . . Ally Attacks . | . . . Total Damage . | . . . Kills . | . . . Allies Corrupted . | . . . Allies Melted . | . . . Intel | -11 -10 -10 ------- Run | Yrd Mat Sub Active Infowar (turns) 182 | . . 182 Terrain 182 | . . 182 Robot Analysis Total . | . . . Derelict Logs Recovered . | . . . Drone Launches . | . . . Drone Recoveries . | . . . Exploration | -11 -10 -10 ------------- Run | Yrd Mat Sub Turns Passed 877 | 115 576 186 Spaces Moved 464 | 69 295 100 Core 6 | 6 . . Treads . | . . . Legs 431 | 63 295 73 Wheels 27 | . . 27 Hover . | . . . Flight . | . . . Fastest Speed 50 | 50 120 110 Average Speed 160 | 113 168 169 Slowest Speed 260 | 120 190 260 Overloaded Moves . | . . . Propulsion Burnouts . | . . . Robots Hopped . | . . . Potential Cave-ins . | . . . Cave-ins Triggered . | . . . Exploration Rate (%) 18 | 3 37 14 Regions Visited 2 Branch Regions 1 Pre-discovered Areas . | . . . Known Exits Taken . | . . . Unknown Exits Taken 2 | 1 1 . Scrap Searched . | . . . Spaces Dug . | . . . Terrain Destroyed 22 | . 15 7 Melee . | . . . Projectile . | . . . AOE 22 | . 15 7 Terrain Rammed . | . . . Walls Destroyed . | . . . Machines Disabled . | . . . Actions | -11 -10 -10 --------- Run | Yrd Mat Sub Total 540 | 88 343 109 Wait 19 | . 19 . Move 462 | 68 294 100 Hop . | . . . Pick Up 14 | 6 7 1 Fast Attach 9 | 6 3 . Attach 2 | . 1 1 Detach 2 | . 2 . Swap 3 | . 1 2 Drop 1 | . 1 . Fire 28 | 8 15 5 Melee . | . . . Ram . | . . . Kick . | . . . Crush . | . . . Escape Stasis . | . . . Rewire . | . . . Trap . | . . . Miscellaneous . | . . . Route ------- -11/Scrapyard -10/Materials (discovered 2 exits: [*Min] / [*Sub]) -10/Subcaves History --------- Turn | Location | Event 8 | -11/Scrapyard | Discovered new exit (range 16) 116 | -11/Scrapyard | Entered Materials 198 | -10/Materials | Discovered new exit (range 5) 311 | -10/Materials | Build established: Mutant 549 | -10/Materials | Discovered new exit (range 7) 692 | -10/Materials | Entered Subcaves 693 | -10/Subcaves | Approached by a straggling Scientist 818 | -10/Subcaves | Ambushed by swarm of Subdwellers 818 | -10/Subcaves | Ambushed by Subdwellers from Twisted Machinery 822 | -10/Subcaves | Ambushed by Subdwellers from Twisted Machinery 856 | -10/Subcaves | Core integrity fell below 50% 858 | -10/Subcaves | Core integrity fell below 20% 864 | -10/Subcaves | Lost 4 allies 878 | -10/Subcaves | Destroyed by BO-IBO(R) with Subdweller Laser Last Messages --------------- Machinery. 00822_ HV Slug penetrates YG-L5J(R). 00822_ YG-L5J(R) suffers critical hit (Destroy). 00822_ YG-L5J(R) destroyed. 00822_ Z1-H6V(R) angrily emerges from the Twisted Machinery. 00822_ NB-SAG(R) affixes Scrap Shield Fragment to Scrap Shield. 00825_ Med. Laser destroyed. 00825_ Grenade Launcher destroyed. 00826_ HV Slug penetrates K9-GM8(R). 00826_ K9-GM8(R) suffers critical hit (Destroy). 00826_ HV Slug penetrates HY-ZIE(R). 00826_ HY-ZIE(R) suffers critical hit (Destroy). 00826_ ZV-CLJ(h) destroyed. 00827_ HY-ZIE(R) suffers critical hit (Burn). 00829_ HY-ZIE(R) destroyed. 00833_ 1Z-URI(c) destroyed. 00859_ Wheel destroyed. 00874_ Aluminum Leg destroyed. Map ----- +----------------------------------------------------+ | ?????????????????????????????????????????????? | | ?????????????????????????????????????????????? | | ?????????????????????????????????????????????? | | ?????????????????????????????????????????????? | | ?????????????????????????????????????????????? | | ?????????????????????????????????????????????? | | ?????????????????????????????????????????????? | | ?????????????????????????????????????????????? | | ?????????????????????????????????????????????? | | ?????????????????????????????????????????????? | | ?????????????????????????????????????????????? | | ?????????????????????????????????????????????? | | ?????????????????????????????#???????????????? | | ?????????????????????????????????????????????? | | ?????????????????????????????????????????????? | | ?????????????????????????????????????????????? | | ?????????????????????????????????????????????? | | ?????????????????????????????????????????????? | | ?????????????????????????????????????????????? | | ?????????????????????????????????????????????? | | ??????????????????????? ????###??????????????? | | ????????????????????###????## #????#?????????? | | ????????????????????## ??## ##???#?????????? | | ????????????????????# ?## ;##????????????? | | ????????????????????# ## ##?????????????? | | ????????????????????# @ ##?????????????? | | ????????????????????#### #?????????????? | | ??????????????????????## #?????????????? | | ?????????????????????## ##??#??????????? | | ?????????????????? "## ##?????????????? | | ?????????????????""""" #?????????????? | | ??????????????""???## ####?????????????? | | ????????????????? ??#### #????????????????? | | ???????????????" ???## ##???????????????? | | ?????????????? ### RR ##??????????????? | | ?????????????? " #??????????????? | | ???????????????# "" #??????????????? | | ?????????????? " ###??????????????? | | ???????????????# " R#????##???????#??? | | ???????????????" ## "" #????????????????? | | ???????????????"" ###""# ##???????????????? | | ?????????????????"#??#" #????????##?????? | | ?????????????????????# ##???????????????? | | ?????????????????????# ## #????????????????? | | ????????????????????## #????????????????? | | ???????????????????## #????????????????? | | ?????????????????### ###????????#?????? | | ????????????????## #??????#???????? | | ????????????????# #???????????#??? | | ????????????????# #??????????????? | +----------------------------------------------------+ Best States ------------- Heat Dissipation 35 Energy Generation 10 Energy Capacity 125 Matter Stores 300 Matter Capacity 300 Sight Range 16 Terrain Scan Range 16 Terrain Scan Density 10 Evasion (%) 55 Item Schematics ----------------- None Robot Schematics ------------------ None Fabricated ------------ Nothing Repaired ---------- Nothing Studied --------- None Alien Tech Used ----------------- None Achievements -------------- None Challenges ------------ None Game ------ Seed ThunderMyomerLattice Manual? 0 Play Time 00:10:05 Cumulative 162.9 hours Start 2026.03.29 @ 01:56:33 End 2026.03.29 @ 02:04:43 Sessions 1 Manual Loads 0 Difficulty Rogue Special Mode None Game No. 126 Rogue 126 Adventurer 0 Explorer 0 Win Type - Total 0 Types 0/0/0/0/0/0/0/0/0/0 Lore% 55 Gallery% 50 Achievement% 39 Wizard Run 0 Options --------- Layout 1 ASCII 1 Keyboard 1 Movement Numpad Keybinds 0 Fullscreen 1 Font 24/Smallcaps Map View 50x35 Zoom Use 0% Tactical HUD 1 Map Filters NONE Filters NONE Steam 1 RUN: 745fe4d2-2840-40d6-837a-07b721d27d4a